Department family,Entity,Date,Expense type,Expense area,Supplier,Transaction number,Amount,VAT registration number
Dept of Health,MHRA,03/07/2018,Contracted Out Services Miscellaneous,Transformation,PA Consulting Services Ltd,10124320,"230,868.00 ",238535057
Dept of Health,MHRA,04/07/2018,Application Services and Maintenance,Transformation,Appian Corporation,166,"149,716.80 ",
Dept of Health,MHRA,04/07/2018,Assets Under Construction - Plant & Equipment,Operations,Detail Design Engineering LTD,12725,"33,116.94 ",561067355
Dept of Health,MHRA,04/07/2018,Application Services and Maintenance,Finance & Procurement,Public Health England,6322625,"30,000.00 ",888849628
Dept of Health,MHRA,04/07/2018,"Service, Integration & Management (SIAM)",Transformation,Redrock Consulting Ltd,7717,"45,016.03 ",862247715
Dept of Health,MHRA,04/07/2018,Software & Licences,Transformation,Trustmarque Solutions Limited,2009541,"-40,363.78 ",394593601
Dept of Health,MHRA,04/07/2018,Software & Licences,Transformation,Trustmarque Solutions Limited,2273881,"43,877.40 ",394593601
Dept of Health,MHRA,09/07/2018,Application Services and Maintenance,Transformation,Accenture (UK) Limited,3003398222,"26,500.01 ",788629066
Dept of Health,MHRA,09/07/2018,Application Services and Maintenance,Transformation,Accenture (UK) Limited,3003398224,"349,672.26 ",788629066
Dept of Health,MHRA,09/07/2018,Accommodation Rent,Facilities & Estates,Department for Business Energy and Industrial Strategy,615110016376,"1,077,436.98 ",888825550
Dept of Health,MHRA,09/07/2018,Accommodation Rates,Facilities & Estates,Department for Business Energy and Industrial Strategy,615110016376,"426,602.82 ",888825550
Dept of Health,MHRA,09/07/2018,Accommodation Service Charge,Facilities & Estates,Department for Business Energy and Industrial Strategy,615110016376,"195,272.99 ",888825550
Dept of Health,MHRA,09/07/2018,Electricity,Facilities & Estates,Department for Business Energy and Industrial Strategy,615110016376,"47,254.36 ",888825550
Dept of Health,MHRA,09/07/2018,Facilities Management & Portering,Facilities & Estates,Department for Business Energy and Industrial Strategy,615110016376,"5,643.90 ",888825550
Dept of Health,MHRA,09/07/2018,Building Maintenance & Repairs,Facilities & Estates,Department for Business Energy and Industrial Strategy,615110016376,"17,483.68 ",888825550
Dept of Health,MHRA,09/07/2018,Security,Facilities & Estates,Department for Business Energy and Industrial Strategy,615110016376,"33,916.32 ",888825550
Dept of Health,MHRA,09/07/2018,Cleaning,Facilities & Estates,Department for Business Energy and Industrial Strategy,615110016376,"28,304.08 ",888825550
Dept of Health,MHRA,09/07/2018,Postage,Facilities & Estates,Department for Business Energy and Industrial Strategy,615110016376,"18,367.21 ",888825550
Dept of Health,MHRA,09/07/2018,Staff Restaurant,Facilities & Estates,Department for Business Energy and Industrial Strategy,615110016376,"24,806.13 ",888825550
Dept of Health,MHRA,09/07/2018,Application Services and Maintenance,Transformation,Digital Business Design LLP,MHRA03,"70,224.00 ",265660486
Dept of Health,MHRA,09/07/2018,Infrastructure Services and Maintenance,Transformation,Exponential-e,346401,"26,920.45 ",798572653
Dept of Health,MHRA,09/07/2018,Infrastructure Services and Maintenance,Transformation,NTT Data UK Ltd,4011933,"138,788.60 ",159334590
Dept of Health,MHRA,11/07/2018,Application Services and Maintenance,Transformation,Accenture (UK) Limited,3003398945,"85,443.90 ",788629066
Dept of Health,MHRA,11/07/2018,Water,Operations,Castle Water,TE00080024,"33,175.43 ",189775040
Dept of Health,MHRA,11/07/2018,Water,Operations,Castle Water,TE00081010,"-29,423.14 ",189775040
Dept of Health,MHRA,11/07/2018,Help desk and end user support,Transformation,IDE Group Manage Limited,5001894,"33,619.99 ",123385037
Dept of Health,MHRA,11/07/2018,Help desk and end user support,Transformation,IDE Group Manage Limited,5001896,"39,650.00 ",123385037
Dept of Health,MHRA,11/07/2018,Software & Licences,Transformation,Open Text UK Ltd,9000605794,"86,192.72 ",834871308
Dept of Health,MHRA,11/07/2018,Application Services and Maintenance,Transformation,Red Ant Digital Ltd,INV-07885,"79,200.00 ",123388322
Dept of Health,MHRA,13/07/2018,Infrastructure Services and Maintenance,Transformation,Redrock Consulting Ltd,7834,"81,482.76 ",862247715
Dept of Health,MHRA,13/07/2018,"Service, Integration & Management (SIAM)",Transformation,Redrock Consulting Ltd,7835,"64,936.51 ",862247715
Dept of Health,MHRA,16/07/2018,Travel and Subsistence,Finance & Procurement,Clarity Travel Management,MHRA0027,"164,504.56 ",197694731
Dept of Health,MHRA,16/07/2018,Application Services and Maintenance,Transformation,Cognizant Worldwide Limited,CW101-0000104628A,"62,802.00 ",123382928
Dept of Health,MHRA,16/07/2018,Infrastructure Services and Maintenance,Transformation,Redrock Consulting Ltd,7828,"70,035.65 ",862247715
Dept of Health,MHRA,16/07/2018,Application Services and Maintenance,Transformation,Redrock Consulting Ltd,7830,"116,773.85 ",862247715
Dept of Health,MHRA,18/07/2018,SIAM - Portfolio Services,Transformation,FDM Group ltd,265373-FM,"43,884.00 ",583540529
Dept of Health,MHRA,18/07/2018,Contracted Out Services Miscellaneous,Finance & Procurement,Mace Ltd,35163/0618271,"119,129.77 ",776468756
Dept of Health,MHRA,18/07/2018,Contracted Out Services Miscellaneous,Transformation,PA Consulting Services Ltd,10124290,"251,664.00 ",238535057
Dept of Health,MHRA,18/07/2018,Contracted Out Services Miscellaneous,Transformation,PA Consulting Services Ltd,10124483,"195,230.14 ",238535057
Dept of Health,MHRA,19/07/2018,Application Services and Maintenance,Transformation,MuleSoft Inc,NV-12015,"46,024.55 ",
Dept of Health,MHRA,20/07/2018,Application Services and Maintenance,Transformation,Cognizant Worldwide Limited,CW101-0000097288,"124,832.40 ",123382928
Dept of Health,MHRA,20/07/2018,Solicitors,Policy,Government Legal Department,A2588,"26,700.00 ",888823066
Dept of Health,MHRA,20/07/2018,Software & Licences,Transformation,Trustmarque Solutions Limited,2274342,"36,129.72 ",394593601
Dept of Health,MHRA,26/07/2018,Application Services and Maintenance,Transformation,Accenture (UK) Limited,3003399515,"363,270.20 ",788629066
Dept of Health,MHRA,26/07/2018,Solicitors,Policy,Government Legal Department,A2587,"208,500.00 ",888823066
Dept of Health,MHRA,26/07/2018,Accommodation Rates,Operations,Hertsmere Borough Council,N002960E,"80,359.00 ",230640406
Dept of Health,MHRA,26/07/2018,Application Services and Maintenance,Transformation,Oracle Corporation UK Limited,1657749,"27,864.26 ",391313073
Dept of Health,MHRA,27/07/2018,Application Services and Maintenance,Finance & Procurement,Redrock Consulting Ltd,7824,"115,375.10 ",862247715
Dept of Health,MHRA,30/07/2018,Assets Under Construction - Plant & Equipment,Operations,Commercial Services UK Ltd,INV-0758,"45,379.03 ",130597616
Dept of Health,MHRA,30/07/2018,External Audit,Finance & Procurement,National Audit Office,SIN001208,"55,000.00 ",417632457
Dept of Health,MHRA,31/07/2018,Software & Licences,Transformation,Health Products Regulatory Authority,1400031415,"31,172.40 ",
